bitfinex/quotes_ETHUSD_20240718
["timestamp","ask_amount","ask_price","bid_price","bid_amount"]
[1721266414680,2.91995,3424.8,3423.9,2.92063]
[1721266414886,2.92005,3424.6,3423.9,2.92063]
[1721266415309,2.92014,3424.5,3423.7,2.92079]
[1721266415687,2.505,3424.8,3423.3,2.92115]
[1721266415688,7.21,3424.7,3423.3,2.92115]
[1721266415982,2.9205,3424.1,3423.5,2.92098]
[1721266417208,2.92065,3423.9,3423.2,2.92123]
[1721266417412,2.92065,3423.9,3423.0,2.92135]
[1721266417931,2.92049,3424.1,3422.9,2.3732]
[1721266417932,2.92073,3423.8,3422.9,5.29468]
[1721266418135,2.92073,3423.8,3422.4,0.592196]
[1721266418136,2.92087,3423.7,3422.8,2.92158]
[1721266418343,2.92087,3423.7,3422.9,3.213598]
[1721266418628,2.92087,3423.7,3423.0,2.92141]
[1721266421848,2.92091,3423.6,3422.9,0.292158]
[1721266422901,2.9209,3423.6,3422.6,2.92175]
[1721266423226,2.9209,3423.6,3422.4,0.592196]
[1721266423227,2.92116,3423.3,3422.4,0.592196]
[1721266423427,2.92116,3423.3,3422.5,2.92183]
[1721266423428,5.84238,3423.3,3422.5,2.92183]
[1721266423629,2.92116,3423.3,3422.5,2.92183]
[1721266423828,12.45769,3423.5,3422.5,2.92183]
[1721266423829,2.92125,3423.2,3422.5,2.92183]
[1721266424933,12.45769,3423.5,3422.6,2.92169]
[1721266425158,12.45769,3423.5,3423.0,2.9214]
[1721266425159,7.21,3423.5,3423.0,2.9214]
[1721266426651,7.21,3423.5,3423.1,2.92126]
[1721266426823,2.92064,3423.9,3423.2,2.92118]
[1721266427950,24.99998,3424.0,3423.3,2.92114]
[1721266428761,24.99998,3424.0,3423.3,3.505394]
[1721266429077,2.92064,3423.9,3423.3,3.505394]
[1721266429250,2.92064,3423.9,3423.3,0.584254]
[1721266430331,2.92087,3423.7,3422.8,5.40571]
[1721266431359,2.92087,3423.7,3422.9,2.92149]
[1721266431964,2.92091,3423.6,3422.8,2.4842]
[1721266432265,2.92091,3423.6,3422.8,8.40578]
[1721266432630,2.92091,3423.6,3422.9,2.92149]
[1721266432962,2.92091,3423.6,3422.9,1.1619589]
[1721266433162,2.92107,3423.5,3422.7,0.292169]
[1721266433326,2.92113,3423.4,3422.7,0.292169]
[1721266433863,2.92116,3423.3,3422.7,0.292169]
[1721266434926,2.92116,3423.3,3422.7,3.213819]
[1721266435126,2.92116,3423.3,3422.8,0.6135549]
[1721266435354,2.92107,3423.5,3422.8,3.5351249]
[1721266437962,12.1844,3424.0,3422.9,2.92147]
[1721266437963,2.92068,3423.9,3422.9,2.92147]
[1721266438172,12.1844,3424.0,3422.8,0.67198381]
[1721266438173,7.21,3424.0,3423.2,2.92122]
[1721266438358,7.21,3424.0,3423.1,2.4931]
[1721266438359,7.21,3424.0,3423.3,0.53105419]
[1721266438672,7.21,3424.0,3423.1,2.4931]
[1721266438970,2.92096,3423.6,3423.1,2.4931]
[1721266439570,2.92099,3423.5,3423.1,2.4931]
[1721266440071,2.92087,3423.7,3423.1,2.4931]
[1721266440381,2.9209,3423.6,3423.2,0.5473013]
[1721266440558,2.921,3423.5,3423.2,0.5473013]
[1721266441437,2.92087,3423.7,3423.2,0.5473013]
[1721266441638,2.92095,3423.6,3423.2,0.5473013]
[1721266441838,2.921,3423.5,3423.2,0.5473013]
[1721266442372,2.921,3423.5,3423.3,0.30404013]
[1721266443641,2.92107,3423.4,3423.3,0.30404013]
[1721266443842,2.9215,3422.9,3422.4,2.3126]
[1721266444249,2.9215,3422.9,3422.1,2.92212]
[1721266445376,2.9216,3422.8,3422.1,2.92212]
[1721266446242,2.92147,3423.0,3422.2,2.92207]
[1721266446474,2.92147,3423.0,3422.3,0.815679]
[1721266447060,2.92152,3422.9,3422.3,0.815679]
[1721266449293,7.21,3423.3,3422.3,0.815679]
[1721266449294,2.92158,3422.8,3422.3,0.815679]
[1721266450467,2.92141,3423.0,3422.3,0.815679]
[1721266452388,2.9215,3422.9,3422.3,0.815679]
[1721266452592,2.9215,3422.9,3422.4,0.6659929]
[1721266455205,2.9215,3422.9,3422.2,2.92208]
[1721266455801,2.92142,3423.0,3422.2,2.92208]
[1721266456398,2.9215,3422.9,3422.2,2.92208]
[1721266459064,5.84272,3423.1,3422.3,2.922]
[1721266459309,5.84272,3423.1,3422.2,2.92208]
[1721266459310,2.92133,3423.1,3422.4,0.584408]
[1721266459601,2.92133,3423.1,3421.6,2.92256]
[1721266459602,2.9219,3422.5,3421.6,4.44641069]
[1721266459809,2.9219,3422.5,3421.7,2.9225]
[1721266459810,2.92198,3422.4,3421.7,2.9225]
[1721266460507,2.9219,3422.5,3421.7,2.9225]
[1721266460508,2.92201,3422.3,3421.7,2.9225]
[1721266460714,2.92201,3422.3,3421.4,5.19844]
[1721266460866,2.92213,3422.2,3421.5,0.812138]
[1721266461066,2.92213,3422.2,3421.5,3.734818]
[1721266461307,2.92213,3422.2,3421.6,5.9226]
[1721266462564,2.92213,3422.2,3421.6,3.0]
[1721266462764,2.92213,3422.2,3421.0,3.97580458]
[1721266462765,2.92227,3422.0,3421.0,3.97580458]
[1721266462993,2.92227,3422.0,3421.2,2.92291]
[1721266462994,2.92237,3421.9,3421.2,2.92291]
[1721266465703,3.73273166,3422.5,3421.1,0.45875165]
[1721266465704,2.92258,3421.7,3421.1,0.45875165]
[1721266466021,2.92263,3421.6,3421.1,0.45875165]
[1721266466875,2.92271,3421.5,3420.6,5.21411]
[1721266467505,2.92288,3421.3,3420.6,5.21411]
[1721266468302,7.21,3422.0,3421.5,2.3476]
[1721266468472,7.21,3422.0,3421.5,5.27029]
[1721266468679,7.21,3422.0,3421.5,6.089612]
[1721266471307,7.21,3422.0,3421.5,5.27029]
[1721266471465,10.13232,3422.0,3421.1,5.41252]
[1721266471780,10.13232,3422.0,3421.0,2.92305]
[1721266471781,2.92247,3421.8,3421.0,2.92305]
[1721266472114,7.21,3422.0,3420.7,5.41282]
[1721266472268,2.92264,3421.6,3420.7,5.41282]
[1721266473197,5.29524,3421.6,3420.5,2.92353]
[1721266473413,2.92269,3421.5,3420.5,2.92353]
[1721266473584,2.92269,3421.5,3420.5,4.055814]
[1721266474317,2.92288,3421.3,3420.5,4.055814]
[1721266476426,2.92296,3421.2,3420.5,4.055814]
[1721266478630,2.92296,3421.2,3420.6,2.92346]
[1721266478802,2.92282,3421.4,3420.6,2.92346]
[1721266478999,2.92282,3421.4,3420.7,0.6979364]
[1721266481011,2.92282,3421.4,3420.7,3.6212964]
[1721266481206,7.21,3421.5,3420.7,3.6212964]
[1721266481207,7.21,3421.5,3421.0,2.92312]
[1721266481945,10.13235,3421.9,3421.2,2.92288]
[1721266482155,10.13235,3421.9,3421.3,0.5846]
[1721266484154,7.21,3421.9,3421.3,3.50746]
[1721266485305,7.21,3422.2,3421.4,2.3882]
[1721266485505,7.21,3422.2,3421.4,5.31097]
[1721266485732,7.21,3422.2,3421.6,2.92254]
[1721266487557,7.21,3422.2,3421.8,2.3882]
[1721266487758,7.21,3422.7,3422.1,2.92218]
[1721266488162,7.21,3422.7,3422.2,2.92208]
[1721266489415,19.61,3423.1,3422.5,5.31002]
[1721266489581,2.92122,3423.3,3422.5,6.13907366]
[1721266491186,2.92124,3423.2,3422.5,6.13907366]
[1721266491689,2.92107,3423.4,3422.5,3.21725366]
[1721266491893,2.92107,3423.4,3422.7,2.92166]
[1721266492101,2.92107,3423.4,3422.7,3.83358637]
[1721266493210,2.92107,3423.4,3422.7,2.92166]
[1721266494316,2.92119,3423.3,3422.5,2.92182]
[1721266494880,2.92119,3423.3,3422.6,2.92175]
[1721266498023,2.92119,3423.3,3422.5,3.506228]
[1721266498413,2.92119,3423.3,3422.6,2.92173]
[1721266499530,2.92119,3423.3,3422.5,0.584398]
[1721266499833,2.92124,3423.2,3422.5,3.506228]
[1721266500404,4.8423,3423.4,3422.1,2.4659]
[1721266500612,2.505,3423.0,3421.3,2.92285]
[1721266500928,2.92208,3422.3,3421.5,2.92263]
[1721266501131,2.9221,3422.2,3421.6,0.584548]
[1721266501501,2.9221,3422.2,3421.6,3.507148]
[1721266502427,2.9221,3422.2,3421.6,0.584548]
[1721266502592,2.92218,3422.1,3421.4,2.92273]
[1721266502892,2.3375,3422.5,3420.9,2.92318]
[1721266502893,2.92217,3422.2,3420.9,2.92318]
[1721266503112,2.92252,3421.7,3421.0,2.92309]
[1721266503751,2.92252,3421.7,3420.9,2.92319]
[1721266503909,2.92261,3421.6,3420.9,2.92319]
[1721266504110,2.92261,3421.6,3421.0,2.92312]
[1721266504355,2.92244,3421.8,3421.0,2.92312]
[1721266504535,2.92252,3421.7,3421.0,2.92312]
[1721266505347,10.13236,3421.9,3421.1,2.92303]
[1721266505544,7.21,3421.9,3421.2,2.734103]
[1721266505735,7.21,3421.9,3421.3,2.9228]
[1721266507071,7.21,3421.9,3421.4,2.92271]
[1721266507279,7.21,3421.9,3421.7,2.9225]
[1721266507581,7.21,3421.9,3421.2,2.734103]
[1721266507582,7.21,3422.5,3421.8,2.92242]
[1721266507773,7.21,3422.5,3421.9,0.292242]
[1721266508279,7.21,3422.5,3421.9,3.214572]
[1721266511313,7.21,3422.5,3422.0,2.92225]
[1721266511660,15.32158,3422.8,3422.0,5.38095]
[1721266511896,2.92158,3422.8,3422.1,3.7817292]
[1721266514081,2.92167,3422.7,3422.1,0.8595592]
[1721266514299,2.92167,3422.7,3421.9,0.292242]
[1721266514534,2.92184,3422.5,3421.9,0.292242]
[1721266515523,2.92184,3422.5,3421.9,3.214582]
[1721266515709,2.92176,3422.6,3421.9,3.214582]
[1721266516222,2.92176,3422.6,3422.0,0.9136962]
[1721266516421,2.92176,3422.6,3421.7,3.0]
[1721266516622,2.92184,3422.5,3421.7,3.0]
[1721266516986,2.92184,3422.5,3421.5,2.3014]
[1721266517386,2.92184,3422.5,3421.7,2.92246]
[1721266517728,2.92184,3422.5,3421.8,3.0]
[1721266518713,2.92184,3422.5,3421.8,5.92241]
[1721266519309,2.92184,3422.5,3421.8,3.0]
[1721266520406,2.92193,3422.4,3421.8,2.99874265]
[1721266520808,2.92175,3422.6,3421.9,2.92234]
[1721266521243,2.92161,3422.8,3421.9,2.92234]
[1721266521244,2.92184,3422.5,3421.9,2.92234]
[1721266521615,2.92161,3422.8,3421.9,2.92234]
[1721266521616,2.92173,3422.7,3421.9,2.92234]
[1721266522242,2.9218,3422.6,3421.9,2.92234]
[1721266522851,2.92184,3422.5,3421.9,2.92234]
[1721266526463,2.92184,3422.5,3421.9,2.92235]
[1721266526651,2.92184,3422.5,3421.8,3.88059546]
[1721266526964,2.92206,3422.3,3421.5,2.3014]
[1721266527136,2.92206,3422.3,3421.5,8.22409]
[1721266527338,2.92206,3422.3,3421.3,5.92283]
[1721266527339,2.92218,3422.1,3421.3,5.92283]
[1721266527961,2.92227,3422.0,3421.3,5.92283]
[1721266529155,2.9224,3421.9,3421.1,2.92302]
[1721266529530,2.92249,3421.8,3421.1,2.92302]
[1721266530653,2.92253,3421.7,3420.9,2.92314]
[1721266530855,2.92253,3421.7,3420.9,2.9232]
[1721266531581,2.92253,3421.7,3421.0,5.9231]
[1721266531787,2.92253,3421.7,3421.0,3.0]
[1721266532091,2.92286,3421.4,3420.8,3.0]
[1721266532242,2.92286,3421.4,3420.7,2.4601]
[1721266532440,2.92274,3421.5,3420.7,2.4601]
[1721266532441,2.9229,3421.3,3420.7,2.4601]
[1721266532658,2.9229,3421.3,3420.5,2.92353]
[1721266532890,2.9229,3421.3,3420.6,2.92345]
[1721266534788,2.9229,3421.3,3420.7,2.92337]
[1721266534976,2.9229,3421.3,3420.5,3.508253]
[1721266535299,2.9229,3421.3,3420.6,5.92346]
[1721266539215,2.92284,3421.4,3420.7,2.92336]
[1721266540224,2.92287,3421.3,3420.5,3.508203]
[1721266540401,2.92287,3421.3,3420.3,2.4299]
[1721266540402,2.92311,3421.1,3420.3,5.35355]
[1721266540776,2.92311,3421.1,3420.4,2.92357]
[1721266541001,2.92311,3421.1,3420.4,3.751282]
[1721266542620,2.92312,3421.0,3420.4,0.827712]
[1721266542775,2.92312,3421.0,3420.4,2.92362]
[1721266544306,2.92301,3421.2,3420.5,2.92354]
[1721266544912,2.92287,3421.3,3420.5,2.92354]
[1721266544913,2.92284,3421.4,3420.7,2.92337]
[1721266546116,2.92284,3421.4,3420.8,2.92328]
[1721266552300,1.047,3421.3,3420.6,5.1745]
[1721266552799,1.047,3421.3,3420.7,2.92336]
[1721266555346,2.92284,3421.4,3420.5,2.92352]
[1721266555347,1.047,3421.1,3420.5,2.92352]
[1721266555638,3.5142,3421.1,3420.5,2.92352]
[1721266556007,1.047,3420.9,3420.5,2.92352]
[1721266556837,1.047,3420.9,3420.3,2.92371]
[1721266558042,1.047,3420.9,3420.4,2.92363]
[1721266558347,6.43729,3421.1,3420.4,2.92363]
[1721266559502,1.047,3420.9,3420.3,2.92371]
[1721266561527,3.97026,3420.9,3420.1,2.92388]
[1721266562352,3.97026,3420.9,3420.1,5.8477]
[1721266562530,3.97026,3420.9,3420.1,2.92382]
[1721266562836,3.97026,3420.9,3420.2,2.9238]
[1721266563804,1.047,3420.5,3419.9,2.92402]
[1721266564059,1.047,3420.3,3419.8,2.92411]
[1721266564404,1.047,3420.3,3419.6,2.9243]
[1721266564860,1.047,3420.3,3419.7,2.92422]
[1721266565065,3.97073,3420.3,3419.5,2.92434]
[1721266565342,1.047,3420.1,3419.5,2.92434]
[1721266565509,1.047,3420.1,3419.6,2.92425]
[1721266566324,2.92373,3420.3,3419.6,2.92425]
[1721266566523,7.21,3420.4,3419.7,5.31071]
[1721266566735,10.13365,3420.4,3419.7,5.31071]
[1721266567137,2.92373,3420.3,3419.7,5.31071]
[1721266567550,7.21,3420.4,3419.9,2.924]
[1721266567849,7.21,3420.4,3420.0,2.92396]
[1721266569641,7.21,3420.4,3419.8,5.8482]
[1721266569840,7.21,3420.4,3419.9,2.92406]
[1721266570044,7.21,3420.4,3420.0,2.92395]
[1721266571034,3.97046,3420.6,3419.9,2.92406]
[1721266571419,1.047,3420.4,3419.9,2.92406]
[1721266572941,3.97066,3420.4,3419.7,3.852415]
[1721266573253,3.97066,3420.4,3420.0,2.92395]
[1721266573254,1.047,3420.4,3420.0,2.92395]
[1721266574019,1.047,3420.6,3420.0,2.92395]
[1721266574444,3.97047,3420.6,3420.0,2.92395]
[1721266575332,24.93701,3420.8,3420.0,5.886059]
[1721266575333,19.61,3420.8,3420.0,5.886059]
[1721266575517,7.21,3420.8,3420.3,2.92371]
[1721266578680,8.257,3420.8,3420.1,2.92383]
[1721266579453,1.047,3420.6,3420.2,2.9238]
[1721266579654,8.257,3420.8,3420.3,2.9237]
[1721266580067,3.97012,3421.0,3420.3,2.9237]
[1721266580579,1.047,3420.8,3420.3,2.9237]
[1721266582667,1.047,3420.8,3420.1,2.92388]
[1721266582884,1.047,3420.8,3420.2,2.92378]
[1721266583388,1.047,3420.8,3420.3,2.92371]
[1721266583805,1.047,3420.8,3420.2,2.92374]
[1721266586781,3.9703,3420.8,3420.2,2.92374]
[1721266587114,1.047,3420.6,3420.0,2.92397]
[1721266587419,1.047,3420.4,3419.8,2.92408]
[1721266587622,5.38657,3420.6,3419.4,3.02102961]
[1721266587623,1.047,3420.2,3419.6,2.92428]
[1721266587914,3.97081,3420.2,3419.5,2.92439]
[1721266588116,1.047,3420.0,3419.5,2.92439]
[1721266589579,3.97099,3420.0,3419.3,2.92457]
[1721266589781,1.047,3419.8,3419.1,2.92473]
[1721266589984,1.047,3419.3,3418.8,2.92492]
[1721266590178,1.047,3419.3,3418.7,2.92508]
[1721266592007,1.047,3419.3,3418.5,2.92524]
[1721266592210,1.047,3419.3,3418.4,2.3954]
[1721266592211,2.9245,3419.4,3418.6,5.92517]
[1721266592414,2.516,3419.1,3418.0,2.92567]
[1721266592613,2.516,3419.1,3417.8,2.92584]
[1721266592614,2.92493,3418.9,3418.1,2.92558]
[1721266592932,2.92493,3418.9,3418.0,2.92568]
[1721266593288,2.92466,3419.2,3418.2,2.92551]
[1721266593502,2.92466,3419.2,3418.3,0.292551]
[1721266593704,2.92466,3419.2,3418.3,2.92536]
[1721266593904,2.92466,3419.2,3418.4,2.92534]
[1721266594532,2.92466,3419.2,3418.5,2.92524]
[1721266596007,2.92485,3419.0,3418.2,2.92551]
[1721266596439,2.92516,3418.7,3417.9,5.92573]
[1721266596933,2.92519,3418.6,3417.9,3.0]
[1721266597132,2.92519,3418.6,3417.8,3.0]
[1721266597331,2.92519,3418.6,3417.8,5.92584]
[1721266598240,2.92519,3418.6,3417.8,2.92584]
[1721266598652,5.17811,3418.8,3417.8,3.450484]
[1721266598820,5.17811,3418.8,3418.1,2.92559]
[1721266599623,5.17811,3418.8,3418.0,2.92567]
[1721266600131,5.17811,3418.8,3418.1,2.92558]
[1721266602339,5.17811,3418.8,3417.9,2.92577]
[1721266602525,2.92518,3418.6,3417.9,2.92577]
[1721266604158,2.92518,3418.6,3418.0,2.92568]
[1721266604464,10.13492,3418.9,3417.9,2.92576]
[1721266604871,2.925,3418.8,3418.2,2.92551]
[1721266605416,7.21,3418.9,3418.2,2.92551]
[1721266605656,10.13492,3418.9,3418.2,2.92551]
[1721266605858,2.92501,3418.8,3418.0,2.92568]
[1721266606165,2.92517,3418.7,3418.0,2.92568]
[1721266606550,2.92517,3418.6,3418.0,2.92568]
[1721266607755,7.21,3418.9,3417.5,2.3206]
[1721266607955,10.13492,3418.9,3418.2,2.92551]
[1721266609048,2.92503,3418.8,3418.0,2.92568]
[1721266609560,10.13492,3418.9,3417.9,2.92577]
[1721266609561,2.9252,3418.6,3417.9,2.92577]
[1721266612250,7.21,3418.9,3418.2,2.9255]
[1721266612591,7.21,3418.9,3418.4,2.92533]
[1721266612761,2.4473,3419.1,3418.5,0.292533]
[1721266612968,7.21,3419.3,3418.6,2.92515]
[1721266613584,2.92468,3419.2,3418.6,2.92515]
[1721266613898,2.92468,3419.2,3418.4,2.92533]
[1721266614207,2.92468,3419.2,3418.5,2.92525]
[1721266614370,10.13463,3419.3,3418.6,2.92516]
[1721266614801,2.92468,3419.2,3418.6,2.92516]
[1721266615764,7.21,3419.3,3418.6,2.92516]
[1721266615969,7.21,3419.3,3418.9,2.92491]
[1721266616181,2.3935,3419.5,3418.9,2.92491]
[1721266616879,5.31791,3419.5,3418.9,2.92491]
[1721266617679,2.3935,3419.5,3418.9,2.92491]
[1721266619535,2.92437,3419.6,3418.9,2.92491]
[1721266621887,7.21,3419.7,3419.0,2.9248]
[1721266622284,10.13423,3419.7,3419.0,2.9248]
[1721266622719,7.21,3419.7,3419.0,2.9248]
[1721266623704,10.13424,3419.7,3419.0,2.9248]
[1721266624105,2.92432,3419.6,3418.9,2.92491]
[1721266624847,2.92432,3419.6,3419.0,2.92483]
[1721266625031,7.21,3419.7,3419.0,2.92483]
[1721266625210,10.13424,3419.7,3419.0,2.92483]
[1721266627245,2.92432,3419.6,3418.9,2.92491]
[1721266627863,2.92432,3419.6,3419.0,2.92482]
[1721266630039,2.92432,3419.6,3418.7,2.92505]
[1721266630463,2.92432,3419.6,3418.9,2.92491]
[1721266631775,2.9244,3419.5,3418.7,2.92505]
[1721266632138,2.92459,3419.3,3418.5,5.85043]
[1721266632388,1.049,3419.1,3418.6,2.9251]
[1721266634185,2.4907,3419.5,3419.0,2.92482]
[1721266634186,1.049,3419.5,3419.0,2.92482]
[1721266634357,7.21,3419.7,3418.8,2.4309]
[1721266634681,7.21,3419.7,3419.3,2.92455]
[1721266634986,7.21,3419.7,3419.4,5.647825]
[1721266635895,7.21,3419.7,3419.5,2.92439]
[1721266638101,7.21,3419.7,3419.3,2.92455]
[1721266638255,7.21,3419.7,3418.7,1.5252103]
[1721266638256,7.21,3419.7,3418.7,1.5252255]
[1721266638456,7.21,3419.7,3419.3,2.9245]
[1721266638713,7.21,3419.7,3419.5,2.9244]
[1721266639079,7.21,3419.7,3419.3,2.9245]
[1721266639621,19.61,3420.0,3419.1,2.92472]
[1721266639777,7.21,3420.0,3419.4,2.92448]
[1721266640401,10.134,3420.0,3419.0,2.92479]
[1721266640606,10.134,3420.0,3419.2,2.9246]
[1721266640990,10.134,3420.0,3419.3,2.92449]
[1721266641901,2.4338,3419.9,3419.1,2.92472]
[1721266642214,2.92421,3419.8,3419.1,2.92472]
[1721266643410,2.92426,3419.7,3418.9,2.92485]
[1721266643615,2.4338,3419.4,3418.7,2.92507]
[1721266643828,5.35834,3419.4,3418.7,2.92507]
[1721266644035,2.92458,3419.3,3418.7,2.92507]
[1721266644339,2.92458,3419.3,3418.5,2.92518]
[1721266644340,2.92466,3419.2,3418.5,2.92518]
[1721266645033,2.92466,3419.2,3418.6,2.92517]
[1721266646328,2.4338,3419.4,3418.7,2.92506]
[1721266646329,5.35833,3419.4,3418.7,2.92506]
[1721266647996,2.4338,3419.4,3418.7,2.92506]
[1721266648194,2.9244,3419.5,3418.7,2.92506]
[1721266648402,2.9244,3419.5,3418.8,2.925]
[1721266648625,2.92449,3419.4,3418.8,2.925]
[1721266649925,10.13435,3419.6,3418.8,2.925]
[1721266650310,2.92449,3419.4,3418.8,2.925]
[1721266654743,2.92449,3419.4,3418.8,5.2089]
[1721266654942,2.92449,3419.4,3418.8,2.2839]
[1721266655844,10.13431,3419.6,3418.8,5.20889]
[1721266656079,2.92441,3419.5,3418.8,5.20889]
[1721266658657,3.97241,3419.5,3418.8,5.20889]
[1721266660697,2.9245,3419.4,3418.8,5.20889]
[1721266661404,1.048,3419.3,3418.8,5.20889]
[1721266663603,3.97245,3419.5,3418.8,5.20889]
[1721266664008,7.21,3419.6,3418.8,3.097305]
[1721266664180,7.21,3419.6,3419.1,2.92474]
[1721266664367,7.21,3419.6,3419.0,2.92476]
[1721266664877,7.21,3419.6,3419.1,2.92474]
[1721266665902,7.21,3419.6,3419.3,2.3933]
[1721266666118,7.21,3419.6,3419.3,5.31782]
[1721266666405,1.22164998,3419.7,3419.4,0.824256]
[1721266667308,2.92401,3420.0,3419.4,0.824256]
[1721266667508,2.92401,3420.0,3419.3,5.31782]
[1721266668269,3.97208,3419.9,3419.3,5.31782]
[1721266669092,1.048,3419.7,3419.1,2.92467]
[1721266669431,1.048,3419.7,3419.2,2.9246]
[1721266669634,3.97208,3419.9,3419.2,3.746317]
[1721266670729,1.048,3419.9,3419.3,2.92455]
[1721266671293,1.048,3419.9,3419.4,2.423]
[1721266671930,8.258,3420.1,3419.4,5.34748]
[1721266672167,8.258,3420.1,3419.5,0.9093827]
[1721266674191,8.258,3420.1,3419.5,3.8337827]
[1721266677419,8.258,3420.1,3419.5,2.9244]
[1721266678104,1.048,3420.1,3419.5,2.9244]
[1721266679134,1.048,3419.9,3419.4,2.423]
[1721266679430,1.048,3419.9,3419.4,5.34747]
[1721266680129,1.048,3419.9,3419.4,2.92447]
[1721266683527,3.97208,3419.9,3419.2,2.92462]
[1721266683731,1.048,3419.7,3419.2,2.92462]
[1721266683971,3.97208,3419.9,3419.2,2.92462]
[1721266684561,3.97208,3419.9,3419.3,2.92457]
[1721266694183,5.36369,3420.0,3419.3,3.741891]
[1721266694184,2.92399,3420.0,3419.3,3.741891]
[1721266694484,2.92382,3420.2,3419.4,5.38408]
[1721266694660,2.92382,3420.2,3419.5,2.92439]
[1721266695059,2.9239,3420.1,3419.5,2.92439]
[1721266696309,3.97177,3420.3,3419.6,2.92429]
[1721266697623,7.21,3420.4,3419.7,3.5135]
[1721266697772,7.21,3420.4,3420.0,2.92396]
[1721266699106,7.21,3420.4,3420.1,2.3513]
[1721266700913,7.21,3420.4,3420.0,2.92396]
[1721266704835,7.21,3420.4,3420.1,2.92381]
[1721266705679,7.21,3420.4,3420.2,2.9238]
[1721266706717,7.21,3420.4,3420.3,2.92372]
[1721266707578,7.21,3420.4,3420.3,5.19862]
[1721266711479,7.21,3420.4,3420.3,2.92372]
[1721266711683,7.21,3420.4,3420.1,2.92384]
[1721266713286,7.21,3420.4,3419.9,2.92406]
[1721266713492,1.048,3420.3,3419.9,2.92406]
[1721266714062,1.048,3420.5,3419.9,2.92406]
[1721266715159,3.97155,3420.5,3419.9,2.92406]
[1721266715464,1.048,3420.5,3419.9,2.92406]
[1721266715860,1.048,3420.5,3419.8,2.92414]
[1721266715861,3.97155,3420.5,3419.8,2.92414]
[1721266716435,1.048,3420.5,3419.9,2.92405]
[1721266716634,11.18144,3420.7,3420.0,2.92397]
[1721266716861,7.21,3420.7,3420.1,2.92388]
[1721266717026,7.21,3420.7,3420.2,2.92379]
[1721266717224,7.21,3420.7,3420.3,2.92371]
[1721266717421,20.658,3421.1,3420.3,3.613269]
[1721266717651,7.21,3421.1,3420.6,2.92341]
[1721266722758,1.048,3421.2,3420.6,2.92341]
[1721266723965,1.048,3421.2,3420.7,2.92337]
[1721266724695,9.5976,3421.5,3420.8,2.92325]
[1721266724898,7.21,3421.5,3421.2,2.92288]
[1721266725079,2.9224,3421.9,3421.2,2.92288]
[1721266725303,1.048,3421.8,3421.2,2.92288]
[1721266729164,3.97043,3421.8,3421.2,2.92288]
[1721266729559,1.048,3421.8,3421.2,2.92288]
[1721266729991,1.048,3421.8,3421.2,3.507479]
[1721266732095,1.048,3421.8,3421.2,5.977779]
[1721266732411,1.048,3421.8,3421.3,2.92283]
[1721266734188,1.048,3421.8,3421.1,2.92298]
[1721266734372,1.048,3421.6,3421.1,2.92298]
[1721266734814,1.048,3421.6,3420.9,5.29319]
[1721266735015,1.048,3421.6,3421.2,2.92294]
[1721266737901,1.048,3421.8,3421.2,2.92294]
[1721266738105,7.21,3422.0,3421.3,2.92284]
[1721266738309,8.258,3422.0,3421.3,3.507418]
[1721266738605,8.258,3422.0,3421.4,2.485]
[1721266738911,7.21,3422.0,3421.4,5.40777]
[1721266739129,19.61,3422.3,3421.7,2.485]
[1721266739282,3.96973,3422.7,3422.0,2.92226]
[1721266739283,7.21,3422.7,3422.0,2.92226]
[1721266739486,7.21,3422.7,3422.3,2.92198]
[1721266740476,7.21,3422.7,3422.3,2.4588]
[1721266740677,7.21,3422.7,3422.4,2.92192]
[1721266740926,11.17924,3423.2,3422.4,2.92192]
[1721266741212,2.92133,3423.1,3422.4,3.856999]
[1721266741380,1.048,3423.0,3422.4,3.856999]
[1721266742178,8.258,3423.2,3422.6,2.92174]
[1721266742523,7.21,3423.2,3422.8,2.92155]
[1721266743227,7.21,3423.2,3423.0,2.404]
[1721266743391,7.21,3423.2,3423.0,3.333515]
[1721266746313,7.21,3423.2,3422.7,2.92166]
[1721266746631,7.21,3423.2,3422.4,2.92191]
[1721266746632,2.92125,3423.2,3422.4,2.92191]
[1721266747185,2.92125,3423.2,3422.5,2.92182]
[1721266748605,2.92121,3423.3,3422.5,2.92182]
[1721266748803,2.92121,3423.3,3422.5,3.754739]
[1721266749103,2.9213,3423.2,3422.5,3.754739]
[1721266749630,2.92113,3423.4,3422.6,2.92172]
[1721266749802,2.92116,3423.3,3422.5,0.832919]
[1721266750006,2.92116,3423.3,3422.5,3.754699]
[1721266750426,2.92116,3423.3,3422.5,2.92178]
[1721266752151,2.92116,3423.3,3422.6,2.92175]
[1721266752442,5.22481,3423.5,3422.2,2.4853]
[1721266752443,2.3038,3423.5,3422.2,2.4853]
[1721266752647,2.3038,3423.5,3421.2,2.51]
[1721266752648,2.92167,3422.7,3421.9,2.92229]
[1721266753144,2.92203,3422.3,3421.5,2.92264]
[1721266753304,2.92203,3422.3,3421.6,2.9226]
[1721266753833,2.92184,3422.5,3421.7,2.92251]